[Event "Titled Tuesday Blitz December 13 Late 2022"]
[White "Santos Flores, Alberto"]
[Black "Bogaudinov, Rushan"]
[WhiteFideId "3601234"]
[BlackFideId "4129288"]
[WhiteElo "2235"]
[BlackElo "2028"]
[Result "1-0"]
[Round "08"]
[TimeControl "180+1"]
[Date "2022.12.14"]
[WhiteClock "0:00:20"]
[BlackClock "0:00:04"]

1. d4 {[%clk 0:03:00]}  Nf6 {[%clk 0:02:17]} 2. c4 {[%clk 0:02:59]}  e6 {[%clk 0:02:14]} 3. Nf3 {[%clk 0:02:59]}  Be7 {[%clk 0:02:14]} 4. Nc3 {[%clk 0:02:57]}  c5 {[%clk 0:02:06]} 5. d5 {[%clk 0:02:55]}  exd5 {[%clk 0:02:07]} 6. cxd5 {[%clk 0:02:55]}  d6 {[%clk 0:02:07]} 7. e4 {[%clk 0:02:55]}  O-O {[%clk 0:02:06]} 8. Be2 {[%clk 0:02:54]}  Bg4 {[%clk 0:01:58]} 9. Nd2 {[%clk 0:02:54]}  Bxe2 {[%clk 0:01:52]} 10. Qxe2 {[%clk 0:02:55]}  a6 {[%clk 0:01:50]} 11. a4 {[%clk 0:02:55]}  Nbd7 {[%clk 0:01:48]} 12. O-O {[%clk 0:02:53]}  Re8 {[%clk 0:01:28]} 13. Nc4 {[%clk 0:02:52]}  Bf8 {[%clk 0:01:26]} 14. Qd3 {[%clk 0:02:43]}  Qb8 {[%clk 0:01:13]} 15. a5 {[%clk 0:02:38]}  b5 {[%clk 0:01:09]} 16. axb6 {[%clk 0:02:38]}  Nxb6 {[%clk 0:01:09]} 17. Na5 {[%clk 0:02:33]}  Qc7 {[%clk 0:00:45]} 18. Nc6 {[%clk 0:02:30]}  c4 {[%clk 0:00:37]} 19. Qd4 {[%clk 0:02:19]}  Nfd7 {[%clk 0:00:32]} 20. Be3 {[%clk 0:02:05]}  g6 {[%clk 0:00:29]} 21. Qd2 {[%clk 0:01:57]}  Bg7 {[%clk 0:00:27]} 22. Bd4 {[%clk 0:01:57]}  Nc5 {[%clk 0:00:26]} 23. Bxc5 {[%clk 0:01:47]}  dxc5 {[%clk 0:00:26]} 24. f3 {[%clk 0:01:48]}  h5 {[%clk 0:00:18]} 25. Ra5 {[%clk 0:01:47]}  Nd7 {[%clk 0:00:18]} 26. Rfa1 {[%clk 0:01:44]}  Qb6 {[%clk 0:00:16]} 27. Qe2 {[%clk 0:01:25]}  Ne5 {[%clk 0:00:14]} 28. Nxe5 {[%clk 0:01:23]}  Bxe5 {[%clk 0:00:15]} 29. R1a2 {[%clk 0:01:10]}  h4 {[%clk 0:00:14]} 30. Qxc4 {[%clk 0:01:08]}  Bd4+ {[%clk 0:00:13]} 31. Kh1 {[%clk 0:01:05]}  h3 {[%clk 0:00:14]} 32. gxh3 {[%clk 0:01:03]}  Qf6 {[%clk 0:00:13]} 33. Qe2 {[%clk 0:01:00]}  Kg7 {[%clk 0:00:13]} 34. Rxa6 {[%clk 0:00:59]}  Rxa6 {[%clk 0:00:12]} 35. Rxa6 {[%clk 0:01:00]}  Qf4 {[%clk 0:00:12]} 36. Ra1 {[%clk 0:00:38]}  Rh8 {[%clk 0:00:12]} 37. Qg2 {[%clk 0:00:36]}  Rh5 {[%clk 0:00:12]} 38. Ne2 {[%clk 0:00:33]}  Qd2 {[%clk 0:00:12]} 39. Nxd4 {[%clk 0:00:31]}  Qxd4 {[%clk 0:00:12]} 40. Rg1 {[%clk 0:00:29]}  Qe5 {[%clk 0:00:11]} 41. Qg3 {[%clk 0:00:29]}  Qd4 {[%clk 0:00:11]} 42. Re1 {[%clk 0:00:26]}  c4 {[%clk 0:00:12]} 43. Qg2 {[%clk 0:00:25]}  f6 {[%clk 0:00:11]} 44. Qe2 {[%clk 0:00:23]}  Rxh3 {[%clk 0:00:10]} 45. Rd1 {[%clk 0:00:23]}  Qe5 {[%clk 0:00:10]} 46. d6 {[%clk 0:00:23]}  Rh8 {[%clk 0:00:10]} 47. d7 {[%clk 0:00:23]}  Rd8 {[%clk 0:00:10]} 48. Qd2 {[%clk 0:00:23]}  Qe7 {[%clk 0:00:10]} 49. Qd6 {[%clk 0:00:22]}  Kf7 {[%clk 0:00:10]} 50. Qxe7+ {[%clk 0:00:21]}  Kxe7 {[%clk 0:00:10]} 51. Kg2 {[%clk 0:00:20]}  g5 {[%clk 0:00:09]} 52. Kf2 {[%clk 0:00:20]}  Ke6 {[%clk 0:00:08]} 53. Ke3 {[%clk 0:00:20]}  Ke7 {[%clk 0:00:08]} 54. Rd5 {[%clk 0:00:20]}  Ke6 {[%clk 0:00:08]} 55. Kd4 {[%clk 0:00:20]}  Ke7 {[%clk 0:00:05]} 56. Kxc4 {[%clk 0:00:20]}  Ke6 {[%clk 0:00:05]} 57. b4 {[%clk 0:00:20]}  Ke7 {[%clk 0:00:05]} 58. b5 {[%clk 0:00:21]}  Ke6 {[%clk 0:00:05]} 59. b6 {[%clk 0:00:21]}  Ke7 {[%clk 0:00:05]} 60. Kc5 {[%clk 0:00:21]}  Ke6 {[%clk 0:00:05]} 61. Kc6 {[%clk 0:00:21]}  f5 {[%clk 0:00:04]} 62. Kc7 {[%clk 0:00:19]}  Rh8 {[%clk 0:00:03]} 63. d8=Q {[%clk 0:00:19]}  Rxd8 {[%clk 0:00:03]} 64. Rxd8 {[%clk 0:00:19]}  g4 {[%clk 0:00:04]} 65. exf5+ {[%clk 0:00:19]}  Kxf5 {[%clk 0:00:04]} 66. fxg4+ {[%clk 0:00:20]} 1-0


[Site "https://www.chess.com"]

[Event "Titled Tuesday Blitz December 13 Late 2022"]
[White "Sargsyan, Anna M."]
[Black "Sukandar, Irine Kharisma"]
[WhiteFideId "13308130"]
[BlackFideId "7101937"]
[WhiteElo "2284"]
[BlackElo "2301"]
[Result "1-0"]
[Round "08"]
[TimeControl "180+1"]
[Date "2022.12.14"]
[WhiteClock "0:02:09"]
[BlackClock "0:01:18"]

1. d4 {[%clk 0:02:56]}  Nf6 {[%clk 0:02:59]} 2. c4 {[%clk 0:02:53]}  e6 {[%clk 0:02:58]} 3. Nf3 {[%clk 0:02:52]}  d5 {[%clk 0:02:57]} 4. Nc3 {[%clk 0:02:53]}  Be7 {[%clk 0:02:48]} 5. Bf4 {[%clk 0:02:53]}  O-O {[%clk 0:02:47]} 6. e3 {[%clk 0:02:53]}  c6 {[%clk 0:02:41]} 7. c5 {[%clk 0:02:47]}  Ne4 {[%clk 0:02:26]} 8. Nxe4 {[%clk 0:02:42]}  dxe4 {[%clk 0:02:27]} 9. Nd2 {[%clk 0:02:43]}  Qa5 {[%clk 0:01:45]} 10. a3 {[%clk 0:02:42]}  f5 {[%clk 0:01:40]} 11. b4 {[%clk 0:02:42]}  Qd8 {[%clk 0:01:41]} 12. Bc4 {[%clk 0:02:43]}  Kh8 {[%clk 0:01:39]} 13. O-O {[%clk 0:02:41]}  Bf6 {[%clk 0:01:37]} 14. f3 {[%clk 0:02:41]}  exf3 {[%clk 0:01:35]} 15. Nxf3 {[%clk 0:02:41]}  Re8 {[%clk 0:01:30]} 16. Qb3 {[%clk 0:02:33]}  a5 {[%clk 0:01:28]} 17. Rad1 {[%clk 0:02:14]}  axb4 {[%clk 0:01:27]} 18. axb4 {[%clk 0:02:15]}  Na6 {[%clk 0:01:27]} 19. Ne5 {[%clk 0:02:15]}  Bxe5 {[%clk 0:01:25]} 20. Bxe5 {[%clk 0:02:16]}  Nc7 {[%clk 0:01:25]} 21. e4 {[%clk 0:02:17]}  fxe4 {[%clk 0:01:24]} 22. Rf7 {[%clk 0:02:16]}  Rg8 {[%clk 0:01:18]} 23. Rxc7 {[%clk 0:02:09]} 1-0


[Site "https://www.chess.com"]

[Event "Titled Tuesday Blitz December 13 Late 2022"]
[White "Souleidis, Georgios"]
[Black "Moral Garcia, Serafin"]
[WhiteFideId "4206827"]
[BlackFideId "2201925"]
[WhiteElo "2401"]
[BlackElo "2259"]
[Result "1-0"]
[Round "08"]
[TimeControl "180+1"]
[Date "2022.12.14"]
[WhiteClock "0:00:32"]
[BlackClock "0:01:33"]

1. e4 {[%clk 0:03:00]}  e5 {[%clk 0:02:59]} 2. Nc3 {[%clk 0:02:59]}  Nf6 {[%clk 0:02:58]} 3. d4 {[%clk 0:02:59]}  exd4 {[%clk 0:02:56]} 4. Qxd4 {[%clk 0:03:00]}  Nc6 {[%clk 0:02:53]} 5. Qd3 {[%clk 0:03:00]}  Bb4 {[%clk 0:02:51]} 6. Bd2 {[%clk 0:03:00]}  O-O {[%clk 0:02:51]} 7. O-O-O {[%clk 0:03:01]}  Re8 {[%clk 0:02:51]} 8. Nge2 {[%clk 0:03:01]}  d6 {[%clk 0:02:44]} 9. Bg5 {[%clk 0:03:01]}  Ne5 {[%clk 0:02:41]} 10. Qg3 {[%clk 0:02:51]}  Bxc3 {[%clk 0:02:41]} 11. Nxc3 {[%clk 0:02:51]}  Be6 {[%clk 0:02:35]} 12. f4 {[%clk 0:02:47]}  Neg4 {[%clk 0:02:31]} 13. h3 {[%clk 0:02:40]}  h6 {[%clk 0:02:28]} 14. hxg4 {[%clk 0:01:36]}  hxg5 {[%clk 0:02:27]} 15. f5 {[%clk 0:01:30]}  Bd7 {[%clk 0:02:25]} 16. Qh3 {[%clk 0:01:21]}  Kf8 {[%clk 0:02:25]} 17. Re1 {[%clk 0:01:06]}  Re5 {[%clk 0:02:23]} 18. Qh8+ {[%clk 0:01:00]}  Ng8 {[%clk 0:02:22]} 19. Rh7 {[%clk 0:00:44]}  Qf6 {[%clk 0:02:22]} 20. Nd5 {[%clk 0:00:45]}  Rxd5 {[%clk 0:02:22]} 21. exd5 {[%clk 0:00:46]}  Re8 {[%clk 0:02:15]} 22. Rxe8+ {[%clk 0:00:45]}  Bxe8 {[%clk 0:02:16]} 23. Rh1 {[%clk 0:00:40]}  Qd4 {[%clk 0:02:10]} 24. Bd3 {[%clk 0:00:39]}  f6 {[%clk 0:02:04]} 25. Qh3 {[%clk 0:00:38]}  Qxd5 {[%clk 0:02:04]} 26. b3 {[%clk 0:00:36]}  b5 {[%clk 0:02:00]} 27. Qf3 {[%clk 0:00:35]}  Qxf3 {[%clk 0:01:53]} 28. gxf3 {[%clk 0:00:36]}  Bc6 {[%clk 0:01:49]} 29. Be4 {[%clk 0:00:35]}  Bd7 {[%clk 0:01:45]} 30. Kd2 {[%clk 0:00:34]}  c6 {[%clk 0:01:43]} 31. c4 {[%clk 0:00:34]}  a6 {[%clk 0:01:41]} 32. Ke3 {[%clk 0:00:34]}  Kf7 {[%clk 0:01:34]} 33. cxb5 {[%clk 0:00:33]}  cxb5 {[%clk 0:01:34]} 34. Bd5+ {[%clk 0:00:32]}  Kf8 {[%clk 0:01:33]} 35. Rh8 {[%clk 0:00:32]} 1-0


[Site "https://www.chess.com"]

[Event "Titled Tuesday Blitz December 13 Late 2022"]
[White "Suarez Uriel, Adrian"]
[Black "Boros, Denes"]
[WhiteFideId "22230874"]
[BlackFideId "722340"]
[WhiteElo "2331"]
[BlackElo "2464"]
[Result "1-0"]
[Round "08"]
[TimeControl "180+1"]
[Date "2022.12.13"]
[WhiteClock "0:00:35"]
[BlackClock "0:00:12"]

1. e4 {[%clk 0:03:00]}  Nc6 {[%clk 0:03:00]} 2. d4 {[%clk 0:02:59]}  e5 {[%clk 0:02:59]} 3. d5 {[%clk 0:02:58]}  Nce7 {[%clk 0:02:59]} 4. Nf3 {[%clk 0:02:56]}  Ng6 {[%clk 0:02:56]} 5. h4 {[%clk 0:02:55]}  h5 {[%clk 0:02:56]} 6. Bg5 {[%clk 0:02:54]}  Be7 {[%clk 0:02:53]} 7. Nc3 {[%clk 0:02:54]}  d6 {[%clk 0:02:53]} 8. Be2 {[%clk 0:02:53]}  Bg4 {[%clk 0:02:53]} 9. Qd2 {[%clk 0:02:49]}  Nf6 {[%clk 0:02:40]} 10. O-O-O {[%clk 0:02:47]}  a6 {[%clk 0:02:40]} 11. Ng1 {[%clk 0:02:42]}  b5 {[%clk 0:02:35]} 12. f3 {[%clk 0:02:42]}  Bd7 {[%clk 0:02:35]} 13. Nh3 {[%clk 0:02:37]}  Qb8 {[%clk 0:02:29]} 14. Nf2 {[%clk 0:02:33]}  Qb6 {[%clk 0:02:26]} 15. Be3 {[%clk 0:02:32]}  Qa5 {[%clk 0:02:24]} 16. a3 {[%clk 0:02:26]}  c6 {[%clk 0:02:22]} 17. dxc6 {[%clk 0:02:20]}  Bxc6 {[%clk 0:02:23]} 18. Kb1 {[%clk 0:02:19]}  Rb8 {[%clk 0:02:19]} 19. Nd3 {[%clk 0:02:14]}  Bb7 {[%clk 0:02:07]} 20. Nb4 {[%clk 0:01:52]}  Qd8 {[%clk 0:02:05]} 21. Ncd5 {[%clk 0:01:46]}  Nxd5 {[%clk 0:01:54]} 22. Nxd5 {[%clk 0:01:47]}  Bxd5 {[%clk 0:01:37]} 23. Qxd5 {[%clk 0:01:47]}  Qd7 {[%clk 0:01:37]} 24. g3 {[%clk 0:01:41]}  O-O {[%clk 0:01:25]} 25. f4 {[%clk 0:01:37]}  b4 {[%clk 0:01:23]} 26. a4 {[%clk 0:01:31]}  exf4 {[%clk 0:01:17]} 27. gxf4 {[%clk 0:01:30]}  Qxa4 {[%clk 0:01:11]} 28. Bc4 {[%clk 0:01:28]}  Bf6 {[%clk 0:01:06]} 29. Rdg1 {[%clk 0:01:20]}  Ne7 {[%clk 0:00:45]} 30. Qxd6 {[%clk 0:01:12]}  b3 {[%clk 0:00:30]} 31. cxb3 {[%clk 0:01:04]}  Qc6 {[%clk 0:00:17]} 32. Qxc6 {[%clk 0:01:00]}  Nxc6 {[%clk 0:00:18]} 33. e5 {[%clk 0:01:01]}  Be7 {[%clk 0:00:18]} 34. Rh2 {[%clk 0:00:46]}  Na5 {[%clk 0:00:18]} 35. Rhg2 {[%clk 0:00:39]}  Nxc4 {[%clk 0:00:11]} 36. Rxg7+ {[%clk 0:00:39]}  Kh8 {[%clk 0:00:12]} 37. bxc4 {[%clk 0:00:39]}  Rb3 {[%clk 0:00:12]} 38. Bd4 {[%clk 0:00:37]}  Rd3 {[%clk 0:00:10]} 39. Bc3 {[%clk 0:00:36]}  Rb8 {[%clk 0:00:11]} 40. Kc2 {[%clk 0:00:36]}  Rh3 {[%clk 0:00:11]} 41. e6 {[%clk 0:00:36]}  Rxc3+ {[%clk 0:00:11]} 42. bxc3 {[%clk 0:00:35]}  Bg5 {[%clk 0:00:12]} 43. R7xg5 {[%clk 0:00:35]} 1-0


[Site "https://www.chess.com"]

[Event "Titled Tuesday Blitz December 13 Late 2022"]
[White "Szyszylo, Rafal"]
[Black "Petrovic, Aleksa"]
[WhiteFideId "1109626"]
[BlackFideId "967629"]
[WhiteElo "1981"]
[BlackElo "2230"]
[Result "1-0"]
[Round "08"]
[TimeControl "180+1"]
[Date "2022.12.14"]
[WhiteClock "0:00:45"]
[BlackClock "0:00:07"]

1. e4 {[%clk 0:03:00]}  c6 {[%clk 0:02:56]} 2. d4 {[%clk 0:02:59]}  d5 {[%clk 0:02:56]} 3. e5 {[%clk 0:02:59]}  c5 {[%clk 0:02:55]} 4. dxc5 {[%clk 0:02:58]}  e6 {[%clk 0:02:55]} 5. a3 {[%clk 0:02:58]}  Bxc5 {[%clk 0:02:54]} 6. b4 {[%clk 0:02:58]}  Be7 {[%clk 0:02:50]} 7. Bb2 {[%clk 0:02:50]}  a5 {[%clk 0:02:49]} 8. Qg4 {[%clk 0:02:41]}  Kf8 {[%clk 0:02:44]} 9. b5 {[%clk 0:02:31]}  Nh6 {[%clk 0:02:30]} 10. Qh5 {[%clk 0:02:28]}  Qc7 {[%clk 0:02:17]} 11. Bd3 {[%clk 0:02:26]}  Nd7 {[%clk 0:02:13]} 12. Nf3 {[%clk 0:02:19]}  Nc5 {[%clk 0:02:07]} 13. O-O {[%clk 0:02:01]}  Nxd3 {[%clk 0:02:03]} 14. cxd3 {[%clk 0:02:02]}  Qc2 {[%clk 0:02:03]} 15. Bc1 {[%clk 0:02:02]}  Qxd3 {[%clk 0:01:44]} 16. Bxh6 {[%clk 0:01:59]}  gxh6 {[%clk 0:01:44]} 17. Qxh6+ {[%clk 0:01:59]}  Ke8 {[%clk 0:01:41]} 18. Nbd2 {[%clk 0:01:51]}  Rg8 {[%clk 0:01:36]} 19. g3 {[%clk 0:01:31]}  b6 {[%clk 0:01:33]} 20. a4 {[%clk 0:01:30]}  Bb7 {[%clk 0:01:33]} 21. Qf4 {[%clk 0:01:20]}  Rc8 {[%clk 0:01:13]} 22. Rfd1 {[%clk 0:01:19]}  Rc3 {[%clk 0:00:50]} 23. h4 {[%clk 0:01:08]}  d4 {[%clk 0:00:36]} 24. Ng5 {[%clk 0:01:04]}  Bxg5 {[%clk 0:00:33]} 25. hxg5 {[%clk 0:01:04]}  Qg6 {[%clk 0:00:27]} 26. Qxd4 {[%clk 0:01:01]}  Qh5 {[%clk 0:00:22]} 27. Ne4 {[%clk 0:00:58]}  Kf8 {[%clk 0:00:07]} 28. Qd8+ {[%clk 0:00:44]}  Kg7 {[%clk 0:00:07]} 29. Qf6+ {[%clk 0:00:45]} 1-0


[Site "https://www.chess.com"]

[Event "Titled Tuesday Blitz December 13 Late 2022"]
[White "Timmermans, Mark"]
[Black "Sjugirov, Sanan"]
[WhiteFideId "1026399"]
[BlackFideId "4189302"]
[WhiteElo "2460"]
[BlackElo "2613"]
[Result "1/2-1/2"]
[Round "08"]
[TimeControl "180+1"]
[Date "2022.12.13"]
[WhiteClock "0:00:07"]
[BlackClock "0:00:05"]

1. b4 {[%clk 0:02:59]}  d5 {[%clk 0:02:56]} 2. Bb2 {[%clk 0:03:00]}  Bf5 {[%clk 0:02:55]} 3. e3 {[%clk 0:03:00]}  e6 {[%clk 0:02:54]} 4. c4 {[%clk 0:03:01]}  Nf6 {[%clk 0:02:48]} 5. b5 {[%clk 0:03:01]}  Be7 {[%clk 0:02:46]} 6. a4 {[%clk 0:03:01]}  O-O {[%clk 0:02:45]} 7. Nf3 {[%clk 0:03:02]}  Nbd7 {[%clk 0:02:41]} 8. Be2 {[%clk 0:03:02]}  h6 {[%clk 0:02:39]} 9. O-O {[%clk 0:03:02]}  a5 {[%clk 0:02:33]} 10. Nc3 {[%clk 0:03:02]}  Nb6 {[%clk 0:02:14]} 11. cxd5 {[%clk 0:03:01]}  exd5 {[%clk 0:02:14]} 12. Qb3 {[%clk 0:02:59]}  Re8 {[%clk 0:02:09]} 13. Rac1 {[%clk 0:02:49]}  Bd6 {[%clk 0:02:08]} 14. Ba3 {[%clk 0:02:46]}  Qe7 {[%clk 0:02:04]} 15. Bxd6 {[%clk 0:02:43]}  Qxd6 {[%clk 0:02:05]} 16. d3 {[%clk 0:02:29]}  Re7 {[%clk 0:01:54]} 17. Nd4 {[%clk 0:02:28]}  Bg6 {[%clk 0:01:53]} 18. Rfd1 {[%clk 0:02:24]}  Rae8 {[%clk 0:01:44]} 19. h3 {[%clk 0:02:13]}  Nfd7 {[%clk 0:01:33]} 20. Bf3 {[%clk 0:02:03]}  Ne5 {[%clk 0:01:23]} 21. Bxd5 {[%clk 0:01:54]}  Nxd3 {[%clk 0:01:22]} 22. Ra1 {[%clk 0:01:29]}  Qb4 {[%clk 0:01:20]} 23. Bxb7 {[%clk 0:01:18]}  Nc5 {[%clk 0:01:20]} 24. Qxb4 {[%clk 0:01:02]}  axb4 {[%clk 0:01:21]} 25. Nd5 {[%clk 0:01:02]}  Nxb7 {[%clk 0:01:00]} 26. Nxe7+ {[%clk 0:01:02]}  Rxe7 {[%clk 0:01:01]} 27. a5 {[%clk 0:01:02]}  Nxa5 {[%clk 0:00:50]} 28. Rxa5 {[%clk 0:01:02]}  Rd7 {[%clk 0:00:51]} 29. Rd2 {[%clk 0:00:57]}  Nc4 {[%clk 0:00:50]} 30. Ra8+ {[%clk 0:00:58]}  Kh7 {[%clk 0:00:50]} 31. Rda2 {[%clk 0:00:58]}  Rxd4 {[%clk 0:00:44]} 32. exd4 {[%clk 0:00:59]}  b3 {[%clk 0:00:45]} 33. Re2 {[%clk 0:00:50]}  b2 {[%clk 0:00:44]} 34. Rxb2 {[%clk 0:00:50]}  Nxb2 {[%clk 0:00:45]} 35. Ra7 {[%clk 0:00:50]}  Bd3 {[%clk 0:00:35]} 36. Rxc7 {[%clk 0:00:50]}  Na4 {[%clk 0:00:36]} 37. Rxf7 {[%clk 0:00:45]}  Bxb5 {[%clk 0:00:35]} 38. d5 {[%clk 0:00:45]}  Nc5 {[%clk 0:00:34]} 39. d6 {[%clk 0:00:45]}  Nd7 {[%clk 0:00:34]} 40. Re7 {[%clk 0:00:44]}  Kg6 {[%clk 0:00:33]} 41. f4 {[%clk 0:00:44]}  Kf6 {[%clk 0:00:33]} 42. Kf2 {[%clk 0:00:44]}  Nc5 {[%clk 0:00:27]} 43. Ke3 {[%clk 0:00:42]}  g5 {[%clk 0:00:19]} 44. g3 {[%clk 0:00:36]}  gxf4+ {[%clk 0:00:19]} 45. gxf4 {[%clk 0:00:37]}  Nd7 {[%clk 0:00:15]} 46. Kd4 {[%clk 0:00:34]}  Bc6 {[%clk 0:00:14]} 47. h4 {[%clk 0:00:31]}  Kf5 {[%clk 0:00:12]} 48. Rf7+ {[%clk 0:00:24]}  Ke6 {[%clk 0:00:11]} 49. Rh7 {[%clk 0:00:24]}  Kxd6 {[%clk 0:00:07]} 50. Rxh6+ {[%clk 0:00:25]}  Kc7 {[%clk 0:00:08]} 51. h5 {[%clk 0:00:19]}  Ba4 {[%clk 0:00:08]} 52. Ra6 {[%clk 0:00:14]}  Bc2 {[%clk 0:00:07]} 53. h6 {[%clk 0:00:14]}  Kd8 {[%clk 0:00:07]} 54. Kd5 {[%clk 0:00:09]}  Ke7 {[%clk 0:00:06]} 55. Ra7 {[%clk 0:00:09]}  Bh7 {[%clk 0:00:05]} 56. Kd4 {[%clk 0:00:09]}  Ke6 {[%clk 0:00:03]} 57. Ke3 {[%clk 0:00:09]}  Bg6 {[%clk 0:00:03]} 58. Kf3 {[%clk 0:00:10]}  Nf6 {[%clk 0:00:04]} 59. Ra6+ {[%clk 0:00:09]}  Kf7 {[%clk 0:00:04]} 60. Rxf6+ {[%clk 0:00:06]}  Kxf6 {[%clk 0:00:04]} 61. f5 {[%clk 0:00:07]}  Kxf5 {[%clk 0:00:04]} 62. h7 {[%clk 0:00:07]}  Bxh7 {[%clk 0:00:05]} 1/2-1/2


[Site "https://www.chess.com"]

[Event "Titled Tuesday Blitz December 13 Late 2022"]
[White "Torres Boch, Jose Francisco"]
[Black "Winterberg, Lukas"]
[WhiteFideId "2278383"]
[BlackFideId "24622702"]
[WhiteElo "2073"]
[BlackElo "2350"]
[Result "0-1"]
[Round "08"]
[TimeControl "180+1"]
[Date "2022.12.14"]
[WhiteClock "0:00:56"]
[BlackClock "0:00:35"]

1. e4 {[%clk 0:02:57]}  g6 {[%clk 0:02:59]} 2. d4 {[%clk 0:02:56]}  Bg7 {[%clk 0:03:00]} 3. Nc3 {[%clk 0:02:56]}  c5 {[%clk 0:02:59]} 4. Nf3 {[%clk 0:02:55]}  cxd4 {[%clk 0:02:59]} 5. Nxd4 {[%clk 0:02:56]}  Nc6 {[%clk 0:03:00]} 6. Be3 {[%clk 0:02:56]}  Nf6 {[%clk 0:03:00]} 7. Bc4 {[%clk 0:02:57]}  O-O {[%clk 0:02:59]} 8. Bb3 {[%clk 0:02:57]}  Ng4 {[%clk 0:02:59]} 9. Qxg4 {[%clk 0:02:55]}  Nxd4 {[%clk 0:02:59]} 10. Bxd4 {[%clk 0:02:50]}  Bxd4 {[%clk 0:02:58]} 11. O-O {[%clk 0:02:49]}  Bg7 {[%clk 0:02:56]} 12. Rad1 {[%clk 0:02:46]}  Qa5 {[%clk 0:02:48]} 13. Nd5 {[%clk 0:02:40]}  e6 {[%clk 0:02:39]} 14. Ne7+ {[%clk 0:02:31]}  Kh8 {[%clk 0:02:39]} 15. c3 {[%clk 0:02:29]}  Rd8 {[%clk 0:02:17]} 16. Qh4 {[%clk 0:02:23]}  b5 {[%clk 0:02:05]} 17. Nxc8 {[%clk 0:02:18]}  Raxc8 {[%clk 0:02:06]} 18. Qe7 {[%clk 0:02:17]}  Rf8 {[%clk 0:01:34]} 19. Rxd7 {[%clk 0:02:15]}  a6 {[%clk 0:01:31]} 20. Rfd1 {[%clk 0:02:10]}  Qb6 {[%clk 0:01:21]} 21. R1d6 {[%clk 0:02:03]}  Qc5 {[%clk 0:01:21]} 22. Bxe6 {[%clk 0:01:47]}  Rce8 {[%clk 0:01:17]} 23. Qh4 {[%clk 0:01:28]}  Rxe6 {[%clk 0:01:11]} 24. Rd5 {[%clk 0:01:20]}  Qc4 {[%clk 0:01:08]} 25. f3 {[%clk 0:01:18]}  Qxa2 {[%clk 0:01:08]} 26. Rd2 {[%clk 0:01:13]}  b4 {[%clk 0:00:59]} 27. Qf4 {[%clk 0:01:11]}  bxc3 {[%clk 0:00:58]} 28. Rxf7 {[%clk 0:01:10]}  Rf6 {[%clk 0:00:36]} 29. Rxf8+ {[%clk 0:00:56]}  Rxf8 {[%clk 0:00:35]} 0-1


[Site "https://www.chess.com"]

[Event "Titled Tuesday Blitz December 13 Late 2022"]
[White "Vargas, Mauricio"]
[Black "Campelo, Leandro Fabricio"]
[WhiteFideId "4404572"]
[BlackFideId "2103346"]
[WhiteElo "2025"]
[BlackElo "2070"]
[Result "1-0"]
[Round "08"]
[TimeControl "180+1"]
[Date "2022.12.14"]
[WhiteClock "0:01:52"]
[BlackClock "0:00:14"]

1. e4 {[%clk 0:03:00]}  c5 {[%clk 0:02:49]} 2. Nc3 {[%clk 0:03:00]}  e6 {[%clk 0:02:48]} 3. f4 {[%clk 0:03:01]}  Nc6 {[%clk 0:02:48]} 4. Nf3 {[%clk 0:03:01]}  g6 {[%clk 0:02:47]} 5. Bb5 {[%clk 0:02:59]}  Nge7 {[%clk 0:02:46]} 6. O-O {[%clk 0:02:58]}  Bg7 {[%clk 0:02:46]} 7. d3 {[%clk 0:02:58]}  d6 {[%clk 0:02:46]} 8. Qe1 {[%clk 0:02:57]}  O-O {[%clk 0:02:46]} 9. Ne2 {[%clk 0:02:55]}  a6 {[%clk 0:02:39]} 10. Ba4 {[%clk 0:02:55]}  b5 {[%clk 0:02:39]} 11. Bb3 {[%clk 0:02:55]}  Nd4 {[%clk 0:02:35]} 12. Nexd4 {[%clk 0:02:52]}  cxd4 {[%clk 0:02:35]} 13. Qh4 {[%clk 0:02:39]}  d5 {[%clk 0:02:33]} 14. f5 {[%clk 0:02:37]}  exf5 {[%clk 0:02:21]} 15. Bh6 {[%clk 0:02:30]}  f6 {[%clk 0:01:59]} 16. Rae1 {[%clk 0:02:13]}  Bxh6 {[%clk 0:01:17]} 17. Qxh6 {[%clk 0:02:12]}  Bb7 {[%clk 0:00:55]} 18. e5 {[%clk 0:02:10]}  Rf7 {[%clk 0:00:31]} 19. exf6 {[%clk 0:02:09]}  Nc6 {[%clk 0:00:19]} 20. Ng5 {[%clk 0:02:04]}  Qf8 {[%clk 0:00:19]} 21. Qh4 {[%clk 0:01:57]}  Na5 {[%clk 0:00:14]} 22. Nxf7 {[%clk 0:01:54]}  Qxf7 {[%clk 0:00:14]} 23. Re7 {[%clk 0:01:52]} 1-0


[Site "https://www.chess.com"]